bitfinex/quotes_ETHUSD_20250821
["timestamp","ask_amount","ask_price","bid_price","bid_amount"]
[1755789984940,49.61672941,4267.0,4266.9,0.001]
[1755789985243,6.00384155,4266.5,4266.4,0.001]
[1755789985453,0.66,4266.2,4262.8,2.36582995]
[1755789985598,0.66,4265.9,4263.8,0.04345325]
[1755789985940,31.803,4266.1,4264.5,0.4414]
[1755789985941,3.0,4265.7,4264.5,0.4414]
[1755789986254,30.7189,4265.6,4264.1,0.4414]
[1755789986454,0.7189,4265.6,4264.1,0.4414]
[1755789986628,0.66,4265.7,4264.1,0.4414]
[1755789986801,4.189,4265.6,4264.1,0.4414]
[1755789987000,3.0,4265.5,4264.1,0.4414]
[1755789987233,3.0,4265.3,4264.5,0.4414]
[1755789987547,3.0,4265.3,4264.0,0.4414]
[1755789987751,1.803,4265.2,4264.0,0.4414]
[1755789987970,3.94502,4265.1,4264.0,0.4414]
[1755789988965,0.3067,4264.9,4264.0,0.4414]
[1755789989274,3.94502,4265.1,4263.8,0.4614]
[1755789989454,3.3067,4264.9,4263.8,0.4614]
[1755789989855,3.0,4265.0,4264.3,0.4414]
[1755789990249,3.993702,4265.0,4264.3,0.4414]
[1755789990467,3.993702,4265.0,4263.9,0.4414]
[1755789990977,0.993702,4265.0,4264.9,0.3026]
[1755789991165,3.0,4265.0,4264.8,0.02]
[1755789992690,0.3067,4264.9,4264.8,0.02]
[1755789993647,0.7649,4264.9,4264.8,0.02]
[1755789993967,44.55350993,4264.9,4264.8,0.02]
[1755789994291,45.21350993,4264.9,4264.8,0.02]
[1755789994488,47.57564956,4264.9,4264.8,0.02]
[1755789995181,49.92037042,4264.9,4264.8,0.02]
[1755789995381,51.76364956,4264.9,4264.8,0.02]
[1755789995583,6.00480624,4264.8,4263.8,0.02]
[1755789995880,0.3067,4263.9,4263.8,0.02]
[1755789996182,39.9587,4263.9,4263.8,0.02]
[1755789996481,41.12505539,4263.9,4263.8,0.02]
[1755789997183,41.23934862,4263.9,4263.8,0.02]
[1755789997509,43.58461938,4263.9,4263.8,0.02]
[1755789997806,37.05134862,4263.9,4263.8,0.02]
[1755789998078,41.23934862,4263.9,4263.8,0.02]
[1755789998706,37.05134862,4263.9,4263.8,0.02]
[1755789998906,41.10625539,4263.9,4263.8,0.02]
[1755789999053,35.81885539,4263.9,4263.8,0.02]
[1755789999374,40.00585539,4263.9,4263.8,0.02]
[1755789999880,41.10625539,4263.9,4263.8,0.02]
[1755790000251,10.66685539,4263.9,4263.8,0.02]
[1755790000448,5.81885539,4263.9,4263.8,0.02]
[1755790000651,5.80805539,4263.9,4263.8,0.02]
[1755790000851,10.43645539,4263.9,4263.8,0.02]
[1755790001047,5.80805539,4263.9,4263.8,0.02]
[1755790001248,9.99505539,4263.9,4263.8,0.02]
[1755790001452,40.43545539,4263.9,4263.8,0.02]
[1755790001649,41.09545539,4263.9,4263.8,0.02]
[1755790002782,36.90845539,4263.9,4263.8,0.02]
[1755790003162,40.35915539,4263.9,4263.8,0.02]
[1755790003474,9.69915539,4263.9,4263.8,0.02]
[1755790003683,5.51215539,4263.9,4263.8,0.02]
[1755790004050,9.69915539,4263.9,4263.8,0.02]
[1755790004473,40.43465539,4263.9,4263.8,0.02]
[1755790004675,35.80725539,4263.9,4263.8,0.02]
[1755790004891,41.09465539,4263.9,4263.8,0.02]
[1755790005279,41.4055136,4263.9,4263.8,0.02]
[1755790005678,47.0445136,4263.9,4263.8,0.02]
[1755790005891,45.33376137,4263.9,4263.8,0.02]
[1755790006098,50.01905594,4263.9,4263.8,0.02]
[1755790006402,20.01905594,4263.9,4263.8,0.02]
[1755790006581,17.67378518,4263.9,4263.8,0.02]
[1755790006780,43.17692697,4263.9,4263.8,0.02]
[1755790007001,2.34549623,4263.5,4262.9,0.001]
[1755790007206,0.9559,4263.0,4262.9,0.001]
[1755790007499,3.66,4262.9,4261.6,0.4602]
[1755790007702,3.66,4262.7,4261.6,0.4602]
[1755790007998,3.0,4262.5,4261.6,0.4602]
[1755790008203,0.66,4262.7,4261.6,0.4602]
[1755790008204,3.0,4262.3,4261.6,0.4602]
[1755790008396,3.0,4262.1,4261.6,0.4602]
[1755790008591,3.0,4261.9,4261.6,0.4602]
[1755790008793,3.0,4261.9,4261.8,0.3148]
[1755790009106,3.0,4261.9,4261.8,0.02]
[1755790010301,33.2959,4261.9,4261.8,0.02]
[1755790010470,35.65803963,4261.9,4261.8,0.02]
[1755790011589,39.54713963,4261.9,4261.8,0.02]
[1755790012139,39.67780578,4261.9,4261.8,0.02]
[1755790012317,35.49280578,4261.9,4261.8,0.02]
[1755790012472,6.54713963,4261.9,4261.8,0.775]
[1755790012673,7.185,4261.9,4261.8,0.775]
[1755790013003,3.0,4261.9,4261.8,0.775]
[1755790013422,7.185,4261.9,4261.8,0.775]
[1755790013624,7.185,4261.9,4261.8,0.3148]
[1755790013832,7.185,4261.9,4261.8,0.775]
[1755790014387,8.084,4261.9,4261.8,0.775]
[1755790014802,3.0,4261.9,4261.8,0.775]
[1755790014993,7.185,4261.9,4261.8,0.775]
[1755790015497,7.185,4261.9,4261.8,0.3148]
[1755790015809,7.185,4261.9,4261.8,0.775]
[1755790016010,7.185,4261.9,4261.8,0.02]
[1755790016224,3.899,4261.9,4261.8,0.02]
[1755790016426,8.084,4261.9,4261.8,0.02]
[1755790017243,3.899,4261.9,4261.8,0.02]
[1755790017437,8.084,4261.9,4261.8,0.02]
[1755790017944,3.899,4261.9,4261.8,0.775]
[1755790018229,7.184,4261.9,4261.8,0.775]
[1755790019241,7.184,4261.9,4261.8,0.02]
[1755790019990,7.184,4261.9,4261.8,0.021]
[1755790020530,3.0,4261.9,4261.8,0.3158]
[1755790020827,4.184,4261.9,4261.8,0.776]
[1755790021330,1.805,4262.2,4261.8,0.776]
[1755790021491,3.0,4262.0,4261.9,0.4602]
[1755790021818,3.0,4262.0,4261.9,0.755]
[1755790022594,1.805,4263.2,4261.9,0.755]
[1755790022831,0.52405706,4263.8,4262.0,0.48366316]
[1755790022998,4.61819966,4263.7,4262.0,0.4602]
[1755790023198,33.63533547,4263.6,4262.0,0.4602]
[1755790023495,30.63533547,4263.5,4262.0,0.4602]
[1755790023720,34.81733547,4263.4,4262.0,0.4602]
[1755790023926,4.81733547,4263.3,4262.1,0.02346261]
[1755790024139,0.63533547,4263.2,4262.2,0.4602]
[1755790024427,3.0,4263.0,4262.2,0.4602]
[1755790024631,0.63533547,4262.9,4262.2,0.4602]
[1755790024841,3.0,4262.8,4262.2,0.4602]
[1755790025040,1.805,4263.2,4262.7,0.2948]
[1755790025242,3.0,4263.0,4262.8,0.4602]
[1755790025452,0.13144564,4262.9,4262.4,0.4602]
[1755790025611,0.13144564,4262.9,4262.8,0.2948]
[1755790025942,7.31344564,4262.9,4262.8,0.755]
[1755790026341,7.31344564,4262.9,4262.8,0.2948]
[1755790026507,8.24815754,4262.9,4262.8,0.2948]
[1755790026708,4.06615754,4262.9,4262.8,0.2948]
[1755790027024,1.825,4263.8,4262.8,0.755]
[1755790027338,1.825,4263.8,4262.9,0.4602]
[1755790027339,0.13148586,4263.7,4262.9,0.4602]
[1755790027504,4.31248586,4263.7,4263.6,0.2948]
[1755790027942,4.3124673,4263.7,4262.9,0.4647]
[1755790028155,33.1306673,4263.6,4262.9,0.4647]
[1755790028314,32.99825534,4263.5,4262.9,0.4647]
[1755790028513,4.3114673,4263.4,4262.3,0.4647]
[1755790028750,0.1314673,4263.3,4262.3,0.4647]
[1755790028910,0.6359888,4263.3,4262.3,0.4647]
[1755790029111,0.13137288,4263.2,4262.3,0.4647]
[1755790029307,4.18,4263.1,4262.3,0.4647]
[1755790029550,0.56251264,4263.0,4262.3,0.4647]
[1755790029764,0.13137513,4262.9,4262.3,0.4647]
[1755790029974,4.18,4262.8,4262.3,0.4647]
[1755790030271,4.18,4262.8,4262.4,0.4647]
[1755790030426,4.18,4262.8,4261.8,0.021]
[1755790030760,4.18,4262.8,4262.1,0.4647]
[1755790031058,7.18,4262.8,4262.7,0.2947]
[1755790031231,3.0,4262.8,4262.7,0.7594]
[1755790031435,4.179,4262.8,4262.7,0.7594]
[1755790031865,4.179,4262.8,4262.7,0.2947]
[1755790032031,4.82051375,4262.8,4262.2,0.4647]
[1755790032845,0.64151375,4262.8,4262.2,0.4647]
[1755790033048,1.805,4263.0,4262.7,0.2947]
[1755790033273,4.178,4262.9,4262.7,0.2947]
[1755790033879,1.805,4263.0,4262.8,0.4647]
[1755790034075,1.805,4263.6,4261.8,0.021]
[1755790034239,4.178,4263.5,4262.9,0.2947]
[1755790034439,1.805,4263.6,4262.9,0.2947]
[1755790034658,4.178,4263.5,4263.0,0.4647]
[1755790034838,4.178,4263.5,4263.4,0.2947]
[1755790035047,4.178,4263.5,4263.4,0.7594]
[1755790035242,5.983,4263.6,4263.4,0.7594]
[1755790035676,1.805,4263.6,4263.4,0.2947]
[1755790035873,0.02,4263.8,4263.5,0.4647]
[1755790036075,4.177,4263.7,4263.5,0.4647]
[1755790036273,4.177,4263.7,4263.6,0.2947]
[1755790036475,0.02,4263.8,4263.6,0.7594]
[1755790036677,4.177,4263.7,4263.6,0.2947]
[1755790036876,35.46293819,4263.7,4261.8,0.021]
[1755790037178,4.177,4263.6,4261.9,0.48816371]
[1755790037398,0.4199,4263.7,4263.5,0.2947]
[1755790037703,4.177,4263.6,4263.5,0.2947]
[1755790037991,4.176,4263.6,4263.5,0.2947]
[1755790038191,0.02,4263.8,4263.5,0.7594]
[1755790038398,4.176,4263.7,4263.5,0.7594]
[1755790038793,0.02,4263.8,4263.5,0.7594]
[1755790038995,0.02,4263.8,4263.6,0.4647]
[1755790039184,4.196,4263.8,4263.7,0.2947]
[1755790039383,0.02,4263.8,4263.7,0.7594]
[1755790039767,0.02,4263.8,4263.7,0.2947]
[1755790041596,0.02,4263.8,4263.7,0.7594]
[1755790042811,0.02,4263.8,4263.7,0.2947]
[1755790042991,0.02,4263.8,4263.4,0.4647]
[1755790043187,0.4397,4263.8,4263.1,0.4647]
[1755790043694,0.2961,4263.2,4262.3,0.4647]
[1755790043870,4.4701,4263.2,4262.3,0.4647]
[1755790044981,1.805,4263.4,4262.4,0.02346096]
[1755790045177,1.805,4263.4,4262.5,0.4647]
[1755790045373,4.173,4263.3,4262.5,0.4647]
[1755790045566,4.173,4263.3,4262.0,0.1722203]
[1755790045567,3.0,4263.3,4262.0,0.1722203]
[1755790045769,3.0,4263.3,4261.8,0.021]
[1755790045770,1.805,4263.4,4262.1,0.4647]
[1755790046072,7.173,4263.3,4262.1,0.4647]
[1755790046272,5.11467,4263.2,4262.1,0.4647]
[1755790048013,3.0,4263.3,4262.2,0.02346206]
[1755790048218,4.173,4263.3,4263.1,0.2947]
[1755790048384,4.192,4263.8,4263.2,0.4647]
[1755790048717,0.02,4263.8,4263.3,0.023456]
[1755790049209,0.02,4263.8,4263.7,0.2947]
[1755790049779,0.02,4263.8,4263.7,0.7594]
[1755790050409,0.02,4263.8,4263.7,0.2947]
[1755790050714,0.02,4263.8,4263.2,0.4647]
[1755790051619,0.02,4263.8,4263.7,0.2947]
[1755790052117,0.0192,4263.8,4263.7,0.2947]
[1755790052520,0.0192,4263.8,4263.7,0.7594]
[1755790053425,0.0192,4263.8,4263.7,1.4194]
[1755790053792,0.0212,4263.8,4263.7,1.4194]
[1755790053994,0.0212,4263.8,4263.7,3.15736257]
[1755790054997,0.0212,4263.8,4263.7,2.49736257]
[1755790055206,0.0212,4263.8,4263.7,0.7594]
[1755790057793,0.0212,4263.8,4263.7,0.2947]
[1755790058197,0.0212,4263.8,4263.2,2.2632]
[1755790058429,0.0212,4263.8,4263.2,1.805]
[1755790062192,0.0212,4263.8,4263.1,0.001]
[1755790062413,0.3003,4263.2,4263.1,0.001]
[1755790063046,0.7554,4263.2,4263.1,0.001]
[1755790065243,0.3003,4263.2,4263.1,0.001]
[1755790065464,0.7554,4263.2,4263.1,0.001]
[1755790065813,1.13094,4263.2,4263.1,0.001]
[1755790066013,34.26203135,4263.2,4263.1,0.001]
[1755790066352,34.92203135,4263.2,4263.1,0.001]
[1755790066654,34.92199592,4263.2,4263.1,0.001]
[1755790067110,3.0,4263.1,4262.7,0.001]
[1755790067320,17.57509421,4262.8,4262.7,0.001]
[1755790067551,3.66,4262.7,4262.2,0.001]
[1755790067728,0.3003,4262.3,4262.2,0.001]
[1755790068118,0.7554,4262.3,4262.2,0.001]
[1755790068927,1.4154,4262.3,4262.2,0.001]
[1755790069252,32.27334,4262.3,4262.2,0.001]
[1755790069416,35.27334,4262.3,4262.2,0.001]
[1755790070031,35.40418809,4262.3,4262.2,0.001]
[1755790070466,35.27334,4262.3,4262.2,0.001]
[1755790070839,5.27334,4262.3,4262.2,0.001]
[1755790071054,5.40406864,4262.3,4262.2,0.001]
[1755790071236,6.12383324,4262.3,4262.2,0.001]
[1755790071440,36.12383324,4262.3,4262.2,0.001]
[1755790071863,40.28683324,4262.3,4262.2,0.001]
[1755790072233,39.56706864,4262.3,4262.2,0.001]
[1755790072436,34.74406864,4262.3,4262.2,0.001]
[1755790072682,8.77734,4262.3,4262.2,0.001]
[1755790073080,9.43734,4262.3,4262.2,0.001]
[1755790073599,3.66,4262.2,4260.8,0.02]
[1755790073743,13.91509421,4261.9,4260.8,0.02]
[1755790074079,46.91509421,4261.9,4260.8,0.02]
[1755790074444,48.03019421,4261.9,4260.8,0.02]
[1755790075262,3.66,4261.8,4260.8,0.02]
[1755790075471,17.57509421,4261.4,4260.8,0.02]
[1755790075673,52.11363421,4261.4,4260.8,0.02]
[1755790075870,22.56793421,4261.4,4260.8,0.02]
[1755790076097,0.66,4261.1,4260.8,0.02]
[1755790076394,17.57509421,4260.9,4260.8,0.02]
[1755790076604,47.57509421,4260.9,4260.8,0.02]
[1755790076764,49.93723384,4260.9,4260.8,0.02]
[1755790076965,50.39233384,4260.9,4260.8,0.02]
[1755790077194,20.39233384,4260.9,4260.8,0.02]
[1755790077421,50.39233384,4260.9,4260.8,0.02]
[1755790078293,3.66,4260.7,4259.9,0.001]
[1755790078489,0.3003,4260.0,4259.9,0.001]
[1755790078689,39.2673,4260.0,4259.9,0.001]
[1755790079414,53.54209421,4260.0,4259.9,0.001]
[1755790079593,53.54209421,4260.0,4258.9,0.4592]
[1755790079594,3.66,4259.9,4258.9,0.4592]
[1755790079793,33.9603,4259.9,4258.9,0.4592]
[1755790079990,36.61821502,4259.9,4258.9,0.001]
[1755790080583,40.78021502,4259.9,4258.9,0.001]
[1755790081012,40.32511502,4259.9,4259.0,0.4592]
[1755790081212,40.32511502,4259.9,4259.0,0.001]
[1755790081213,40.78021502,4259.9,4259.0,0.001]
[1755790081791,17.27479421,4259.4,4259.0,0.001]
[1755790081990,52.11263421,4259.4,4259.0,0.001]
[1755790082317,52.56773421,4259.4,4259.0,0.001]
[1755790082724,3.66,4259.3,4259.0,0.001]
[1755790082910,0.3003,4259.1,4259.0,0.001]
[1755790083118,38.1223,4259.1,4259.0,0.001]
[1755790083316,36.77753963,4259.1,4259.0,0.001]
[1755790083625,40.48343963,4259.1,4259.0,0.001]
[1755790083921,40.93853963,4259.1,4259.0,0.001]
[1755790084124,36.77753963,4259.1,4259.0,0.001]
[1755790084296,40.93953963,4259.1,4259.0,0.001]
[1755790084494,40.48443963,4259.1,4259.0,0.001]
[1755790084717,36.32243963,4259.1,4259.0,0.001]
[1755790084924,40.48443963,4259.1,4259.0,0.001]
[1755790085133,36.02213963,4259.1,4259.0,0.001]
[1755790085445,40.48443963,4259.1,4259.0,0.001]
[1755790085612,3.66,4259.0,4258.8,0.02]
[1755790085820,8.97924,4258.9,4258.8,0.02]
[1755790086126,38.97924,4258.9,4258.8,0.02]
[1755790087488,34.81824,4258.9,4258.8,0.02]
[1755790087658,38.67994,4258.9,4258.8,0.02]
[1755790087813,8.01894,4258.9,4258.8,0.3314]
[1755790088517,3.85794,4258.9,4258.8,0.8017]
[1755790088718,7.161,4258.9,4258.8,0.8017]
[1755790088959,33.9651,4258.9,4258.8,0.02]
[1755790089248,38.5706,4258.9,4258.8,0.02]
[1755790089437,38.1261,4258.9,4258.8,0.02]
[1755790089636,33.66,4258.9,4258.8,0.02]
[1755790089823,40.18313963,4258.9,4258.8,0.3314]
[1755790090154,40.18313963,4258.9,4258.8,0.02]
[1755790090155,40.48823963,4258.9,4258.8,0.02]
[1755790090349,9.52313963,4258.9,4258.8,0.8017]
[1755790090552,7.161,4258.9,4258.8,0.8017]
[1755790090717,3.0,4258.9,4258.8,0.8017]
[1755790091049,7.161,4258.9,4258.8,0.8017]
[1755790091348,3.0,4258.9,4258.8,0.8017]
[1755790091547,7.16,4258.9,4258.8,0.8017]
[1755790091733,4.16,4258.9,4258.8,0.8017]
[1755790091933,0.71709024,4260.5,4258.8,0.8017]
[1755790091934,0.706275,4259.6,4258.8,0.8017]
[1755790092239,4.16,4259.6,4258.9,0.49378024]
[1755790092434,4.16,4259.6,4259.5,0.3114]
[1755790092734,7.7566,4259.6,4259.5,0.3114]
[1755790092934,3.0,4259.5,4258.9,0.4703]
[1755790093135,0.5966,4259.6,4258.9,0.4703]
[1755790093337,3.0,4259.4,4258.9,0.4703]
[1755790093536,4.16,4259.3,4258.9,0.4703]
[1755790093716,1.806,4259.9,4259.3,0.3114]
[1755790093913,4.16,4259.8,4259.4,0.4703]
[1755790094249,4.16,4259.8,4259.7,0.3114]
[1755790094549,4.16,4259.8,4259.7,0.7817]
[1755790094732,1.806,4259.9,4259.7,0.7817]
[1755790094940,1.807,4260.6,4259.8,0.4703]
[1755790095116,0.002,4260.4,4259.8,0.49377528]
[1755790095316,0.002,4260.4,4259.8,0.4703]
[1755790095520,0.002,4260.4,4260.3,0.3114]
[1755790095946,7.161,4260.4,4260.3,0.3114]
[1755790096263,0.002,4260.4,4260.3,0.3114]
[1755790096462,4.161,4260.4,4260.3,0.7817]
[1755790097118,4.7578,4260.4,4259.6,0.4703]
[1755790097349,3.0,4260.3,4259.6,0.4703]
[1755790097761,4.7578,4260.4,4259.6,0.4703]
[1755790097762,0.5988,4260.4,4259.6,0.4703]
[1755790098050,4.158,4260.3,4260.2,0.3114]
[1755790098250,7.158,4260.3,4260.2,0.3114]
[1755790099355,7.1572,4260.3,4260.2,0.7817]
[1755790099851,4.158,4260.3,4259.7,0.4703]
[1755790101634,4.158,4260.3,4258.8,0.021]
[1755790101833,0.716,4260.2,4259.3,0.4703]
[1755790102417,0.716,4260.2,4260.1,0.3114]
[1755790102618,4.156,4260.2,4260.1,0.3114]
[1755790102823,0.002,4260.4,4260.1,0.3114]
[1755790103040,3.0,4260.2,4260.1,0.7817]
[1755790103264,3.0,4260.2,4259.5,0.4703]
[1755790104141,3.0,4260.2,4259.2,0.4703]
[1755790104343,0.7158,4260.1,4259.2,0.4703]
[1755790104548,3.0,4259.9,4259.2,0.4703]
[1755790104855,0.002,4260.4,4259.8,0.3114]
[1755790105020,4.156,4260.3,4259.8,0.3114]
[1755790105225,4.156,4260.3,4259.9,0.4703]
[1755790105560,4.156,4260.3,4260.2,0.3114]
[1755790105869,4.7525,4260.3,4260.2,0.3114]
[1755790106026,4.155,4260.3,4260.2,0.7817]
[1755790106422,4.155,4260.3,4260.2,0.3114]
[1755790107424,0.002,4260.4,4260.2,0.7817]
[1755790107657,4.155,4260.3,4260.2,0.3114]
[1755790107828,0.002,4260.4,4260.2,0.3114]
[1755790108222,0.002,4260.4,4260.3,0.4703]
[1755790108427,0.002,4260.4,4259.1,0.4703]
[1755790108428,5.0865,4260.4,4259.1,0.4703]
[1755790108638,5.0865,4260.4,4259.2,0.02347858]
[1755790108639,0.488,4260.4,4259.2,0.02347858]
[1755790108837,4.154,4260.3,4259.3,0.4703]
[1755790109025,4.154,4260.3,4259.4,0.02347748]
[1755790109434,5.06839,4260.3,4259.5,0.4703]
[1755790110331,5.06839,4260.3,4259.0,0.4703]
[1755790110842,3.4445,4260.2,4259.0,0.4703]
[1755790111358,30.0,4260.1,4258.8,0.021]
[1755790111527,3.0,4260.0,4258.8,0.021]
[1755790111727,3.0,4259.8,4258.8,0.021]
[1755790111935,1.806,4259.7,4258.8,0.021]
[1755790112527,0.3051,4258.9,4258.8,0.021]
[1755790112728,4.4581,4258.9,4258.8,0.021]
[1755790113862,9.7086,4258.9,4258.8,0.021]
[1755790114161,41.97055941,4258.9,4258.8,0.021]
[1755790115165,41.97053443,4258.9,4258.8,0.021]
[1755790115362,41.97053443,4258.9,4258.0,0.001]
[1755790115363,3.66,4258.8,4258.0,0.001]
[1755790115569,17.57989421,4258.5,4257.3,0.001]
[1755790115875,38.66039554,4258.4,4257.3,0.001]
[1755790116041,3.9651,4257.4,4257.3,0.001]
[1755790116241,40.05348525,4257.4,4257.3,0.001]
[1755790116441,40.99833258,4257.4,4257.3,0.001]
[1755790116642,40.99833258,4257.4,4256.9,0.001]
[1755790116965,3.66,4257.0,4256.9,0.001]
[1755790117263,40.2988776,4257.0,4256.9,0.001]
[1755790117680,36.70778745,4257.0,4256.9,0.001]
[1755790117846,54.47458166,4257.0,4256.9,0.001]
[1755790118446,50.32258166,4257.0,4256.9,0.001]
[1755790118656,49.82223433,4257.0,4256.9,0.001]
[1755790118877,30.3109,4257.0,4256.9,0.001]
[1755790119205,1.806,4257.7,4256.9,0.3139]
[1755790119407,34.27118793,4257.6,4256.9,0.001]
[1755790119557,30.0,4257.5,4256.9,0.001]
[1755790119757,4.152,4257.6,4256.9,0.001]
[1755790120015,4.7478,4257.5,4256.9,0.001]
[1755790120199,0.5958,4257.5,4256.9,0.4449]
[1755790120379,1.806,4257.7,4257.4,0.3129]
[1755790120560,1.806,4257.7,4257.5,0.4439]
[1755790120757,1.806,4257.7,4256.9,0.001]
[1755790120758,1.807,4258.3,4257.6,0.7568]
[1755790120961,4.153,4258.2,4257.6,0.7568]
[1755790121186,0.596,4258.1,4257.1,0.4439]
[1755790121387,0.596,4258.1,4256.9,0.001]
[1755790121655,3.596,4258.1,4256.9,0.001]
[1755790121890,0.12000295,4258.7,4257.0,0.4439]
[1755790122070,30.0,4258.6,4257.0,0.4439]
[1755790122273,3.0,4258.4,4257.0,0.4439]
[1755790122620,0.66,4258.1,4256.9,0.001]
[1755790122762,3.66,4257.9,4256.9,0.001]
[1755790122961,3.0,4257.7,4256.9,0.001]
[1755790123292,0.66,4257.9,4256.9,0.001]
[1755790123598,4.152,4257.6,4256.9,0.001]
[1755790123762,4.152,4257.5,4256.9,0.001]
[1755790123962,0.4152,4257.4,4256.9,0.001]
[1755790124291,0.0595,4257.0,4256.9,0.001]
[1755790124592,4.2115,4257.0,4256.9,0.001]
[1755790124997,35.326,4257.0,4256.9,0.001]
[1755790125194,51.94079421,4257.0,4256.9,0.001]
[1755790125405,54.30293384,4257.0,4256.9,0.001]
[1755790125613,3.0,4256.1,4256.0,0.001]
[1755790125778,39.2699,4256.1,4256.0,0.001]
[1755790126108,39.4755,4256.1,4256.0,0.001]
[1755790126266,40.1355,4256.1,4256.0,0.001]
[1755790126461,40.79445539,4256.1,4256.0,0.001]
[1755790127164,50.2572496,4256.1,4256.0,0.001]
[1755790127711,3.66,4256.0,4253.9,0.4439]
[1755790128003,3.0,4255.8,4254.8,0.4639]
[1755790128660,2.46595539,4256.1,4254.8,0.4639]
[1755790128868,3.0,4255.9,4254.8,0.4639]
[1755790129197,4.152,4255.8,4255.5,0.001]
[1755790129397,3.0,4255.7,4255.5,0.001]
[1755790129564,4.152,4255.8,4255.5,0.001]
[1755790129765,4.7479,4255.8,4255.5,0.001]
[1755790129973,3.0,4255.7,4255.5,0.001]
[1755790130787,1.807,4256.1,4255.6,0.7568]
[1755790130992,3.0,4255.9,4255.7,0.4439]
[1755790131184,1.807,4256.1,4255.7,0.4439]
[1755790131394,1.807,4256.1,4255.5,0.001]
[1755790131395,3.0,4255.9,4255.8,0.7568]
[1755790131800,3.0,4255.9,4255.8,0.3129]
[1755790132098,3.0,4255.9,4255.5,0.001]
[1755790132471,3.0,4255.9,4255.8,0.3129]
[1755790132725,3.0,4255.9,4255.8,0.7568]
[1755790132726,4.152,4255.9,4255.8,0.7568]
[1755790133003,3.0,4255.9,4255.8,0.7568]
[1755790133409,1.808,4256.8,4255.8,0.7568]
[1755790133709,4.152,4256.7,4255.9,0.46739679]
[1755790133914,3.0,4256.6,4255.9,0.4439]
[1755790134117,1.808,4256.8,4255.9,0.4439]
[1755790134404,1.808,4257.4,4256.6,0.3129]
[1755790134576,4.152,4257.3,4256.7,0.4439]
[1755790134970,3.0,4257.2,4256.7,0.4439]
[1755790135286,0.02,4256.8,4256.7,0.4439]
[1755790135483,0.02,4256.8,4256.7,0.7568]
[1755790136097,0.02,4256.8,4256.7,1.01328]
[1755790137274,0.02,4256.8,4256.7,1.03677237]
[1755790137471,0.02,4256.8,4256.7,3.38601004]
[1755790137685,0.02,4256.8,4256.7,4.04601004]
[1755790137890,0.02,4256.8,4256.7,1.67328]
[1755790138086,0.02,4256.8,4256.7,4.04601004]
[1755790138321,0.02,4256.8,4256.7,7.04601004]
[1755790138622,0.02,4256.8,4256.7,7.02251767]
[1755790140119,0.022,4256.8,4256.7,7.14011767]
[1755790140325,0.022,4256.8,4256.7,9.61811767]
[1755790140526,0.02,4257.8,4257.7,16.86632368]
[1755790140725,0.02,4258.8,4258.7,0.66]
[1755790140922,0.02,4258.8,4258.7,5.15151574]
[1755790141224,0.002,4260.3,4259.4,0.66]
[1755790141430,0.002,4260.3,4259.7,3.32048316]
[1755790141629,0.002,4260.3,4259.7,3.34395899]
[1755790141925,0.002,4260.3,4259.7,2.16666415]
[1755790142222,0.002,4260.3,4259.7,3.76438316]
[1755790142424,0.002,4260.3,4259.7,6.78785899]
[1755790142586,0.002,4260.3,4259.7,6.88198316]
[1755790144024,0.002,4260.3,4259.7,11.03198316]
[1755790144247,0.002,4260.3,4259.7,21.88962093]
[1755790144397,0.002,4260.3,4260.2,3.00730763]
[1755790144694,0.002,4260.3,4260.2,6.4612807]
[1755790144888,0.002,4260.3,4260.2,6.88170763]
[1755790145301,0.002,4261.3,4260.3,6.00725254]
[1755790145508,0.002,4261.3,4260.3,10.3718]
[1755790145863,0.002,4261.3,4260.3,14.00272247]
[1755790146020,0.002,4261.3,4260.3,24.97796024]
[1755790146947,0.0012,4260.4,4260.3,24.97796024]
[1755790147302,0.002,4261.3,4260.7,3.00703217]
[1755790147506,0.002,4261.3,4260.7,6.46100249]
[1755790147727,0.002,4261.3,4260.7,7.34567748]
[1755790150934,0.002,4261.3,4260.7,8.36604531]
[1755790151550,0.002,4261.3,4260.7,7.90284531]
[1755790151709,0.002,4261.3,4260.7,4.145]
[1755790152544,0.002,4261.3,4260.7,4.16847032]
[1755790152945,0.002,4261.3,4260.7,7.28250249]
[1755790153245,0.002,4261.3,4260.7,5.572]
[1755790153462,0.002,4261.3,4260.7,5.571]
[1755790153656,0.002,4261.3,4260.7,8.78689217]
[1755790153962,0.002,4261.3,4260.7,6.43986]
[1755790154315,0.002,4261.3,4260.7,5.97666]
[1755790154919,0.002,4261.3,4260.5,0.1176]
[1755790155152,0.4648,4260.7,4258.7,0.17404661]
[1755790155639,0.4648,4260.7,4258.8,4.164]
[1755790156154,0.4648,4260.7,4258.9,4.82848024]
[1755790156464,0.4648,4260.7,4258.9,4.805]